fUSD/lending_fUSD_20250612
["ID","MTS","AMOUNT","RATE_DAILY","PERIOD"]
[365497158,1749705042916,-150.0,0.00019999,2]
[365497160,1749705042926,-183.72,0.00019999,2]
[365497162,1749705042936,-24654.5166369,0.00019999,2]
[365497164,1749705042946,-166113.2891357,0.00019999,2]
[365497166,1749705042956,-7862.3471102,0.00019999,2]
[365497168,1749705042966,-500.0,0.00019999,2]
[365497170,1749705042976,-150.0,0.00019999,2]
[365497172,1749705042986,-150.0,0.00019999,2]
[365497174,1749705042996,-500.0,0.00019999,2]
[365497177,1749705043007,-544.87,0.00019999,2]
[365497179,1749705043017,-544.87,0.00019999,2]
[365497181,1749705043032,-544.87,0.00019999,2]
[365497183,1749705043042,-544.87,0.00019999,2]
[365497185,1749705043052,-150.0,0.00019999,2]
[365497187,1749705043063,-544.87,0.00019999,2]
[365497189,1749705043073,-544.87,0.00019999,2]
[365497191,1749705043083,-544.87,0.00019999,2]
[365497193,1749705043093,-544.87,0.00019999,2]
[365497196,1749705043103,-544.87,0.00019999,2]
[365497197,1749705043113,-544.87,0.00019999,2]
[365497200,1749705043124,-544.87,0.00019999,2]
[365497202,1749705043134,-544.87,0.00019999,2]
[365497204,1749705043143,-544.87,0.00019999,2]
[365497206,1749705043154,-544.87,0.00019999,2]
[365497208,1749705043164,-544.87,0.00019999,2]
[365497210,1749705043175,-544.87,0.00019999,2]
[365497212,1749705043184,-544.87,0.00019999,2]
[365497214,1749705043194,-544.87,0.00019999,2]
[365497216,1749705043204,-544.87,0.00019999,2]
[365497218,1749705043214,-544.87,0.00019999,2]
[365497220,1749705043224,-544.87,0.00019999,2]
[365497222,1749705043233,-544.87,0.00019999,2]
[365497224,1749705043244,-544.87,0.00019999,2]
[365497226,1749705043254,-544.93,0.00019999,2]
[365497228,1749705043264,-251.779506,0.00019999,2]
[365497230,1749705043274,-150.0,0.00019999,2]
[365497232,1749705043284,-202.25101604,0.00019999,2]
[365497234,1749705043299,-500.0,0.00019999,2]
[365497236,1749705043309,-1192.0,0.00019999,2]
[365497238,1749705043319,-150.0,0.00019999,2]
[365497240,1749705043329,-581.0,0.0002,2]
[365497242,1749705043340,-334227.97623749,0.0002,3]
[365497245,1749705043354,-1156.2,0.0002,3]
[365497247,1749705043367,-5720.1415427,0.0002,3]
[365497251,1749705043379,-413.78977111,0.0002,3]
[365497255,1749705043391,-281.33845006,0.0002,3]
[365497261,1749705043438,-500.0,0.00019782,2]
[365497263,1749705043448,-150.21,0.0001999,2]
[365497265,1749705043458,-150.21,0.0001999,2]
[365497267,1749705043468,-225677.6827664,0.0002,3]
[365497269,1749705043484,-161212.4339887,0.0002,3]
[365497271,1749705043496,-16681.85246683,0.0002,3]
[365497273,1749705043515,-41165.58882524,0.0002,3]
[365497372,1749705044682,-400.27194685,0.00019216,2]
[365497374,1749705044693,-290.2437896,0.00019312,2]
[365497380,1749705044763,-489.7811424,0.00019312,2]
[365497383,1749705044776,-105.258068,0.00019312,2]
[365497384,1749705044786,-479.39993198,0.00019782,2]
[365497391,1749705044879,-20.60006802,0.00019782,2]
[365497392,1749705044890,-500.0,0.00019782,2]
[365497393,1749705044900,-500.0,0.00019782,2]
[365497394,1749705044909,-500.0,0.00019782,2]
[365497395,1749705044919,-500.0,0.00019782,2]
[365497396,1749705044928,-500.0,0.00019782,2]
[365497397,1749705044939,-500.0,0.00019782,2]
[365497398,1749705044948,-150.21,0.0001999,2]
[365497399,1749705044958,-70.02688914,0.0002,3]
[365497538,1749705046560,-500.0,0.00019782,2]
[365497539,1749705046570,-1.04857964,0.00019782,2]
[365497540,1749705046582,-498.95142036,0.00019782,2]
[365497541,1749705046592,-387.62281474,0.00019782,2]
[365497543,1749705046603,-112.37718526,0.00019782,2]
[365497545,1749705046613,-263.82440421,0.00019782,2]
[365497547,1749705046791,-236.17559579,0.00019782,2]
[365497548,1749705046802,-73.44447815,0.00019782,2]
[365497551,1749705046839,-426.55552185,0.00019782,2]
[365497552,1749705046849,-500.0,0.00019782,2]
[365497554,1749705046858,-500.0,0.00019782,2]
[365497555,1749705046868,-5031.70024456,0.0002,3]
[365497556,1749705104663,500.0,0.00016165,2]
[365497559,1749705234649,1341.01794425,0.00024657,120]
[365497560,1749705236447,55557.50608592,0.00017,2]
[365497561,1749705236475,15484.06509623,0.00017,2]
[365497562,1749705290505,1000.0,0.0002,30]
[365497563,1749705340007,316.8,0.00013699,2]
[365497565,1749705470458,500.0,0.00016165,2]
[365497567,1749705798471,770.85,0.00016584,2]
[365497568,1749705920321,3805.13285111,9e-05,2]
[365497570,1749705936696,12761.53778895,9e-05,2]
[365497576,1749705972855,-201.0,0.00017322,2]
[365497581,1749706031219,5894.37166973,0.00015,2]
[365497582,1749706034695,14296.76422508,0.00015,2]
[365497583,1749706041274,3129.78915818,0.0001305,2]
[365497584,1749706042133,-414.67609901,0.00018,3]
[365497585,1749706077746,3417.18675427,0.00015,2]
[365497586,1749706094331,9524.17144408,0.0001439,2]
[365497631,1749706231897,-395.17093248,0.00017658,2]
[365497633,1749706232006,-1510.37906752,0.00017658,2]
[365497634,1749706232016,-166.48,0.00017676,2]
[365497635,1749706232026,-157.14,0.00017997,2]
[365497636,1749706232036,-173.66281191,0.00018,3]
[365497637,1749706232046,-157.14,0.00018005,2]
[365497638,1749706232056,-201.0,0.00018011,2]
[365497639,1749706232066,-157.14,0.00018013,2]
[365497640,1749706232076,-157.14,0.00018022,2]
[365497641,1749706232086,-157.14,0.0001803,2]
[365497642,1749706232096,-157.14,0.00018038,2]
[365497643,1749706232111,-157.14,0.00018046,2]
[365497644,1749706232121,-157.14,0.00018054,2]
[365497645,1749706232131,-157.14,0.00018062,2]
[365497646,1749706232142,-150.0,0.00018065,7]
[365497647,1749706232151,-157.14,0.00018071,2]
[365497648,1749706232161,-157.14,0.00018079,2]
[365497649,1749706232171,-157.14,0.00018087,2]
[365497650,1749706232181,-689.33169043,0.00018209,2]
[365497651,1749706232191,-1200.0,0.00018218,2]
[365497652,1749706232201,-300.0,0.00018218,2]
[365497653,1749706232211,-4309.17234504,0.00018219,2]
[365497654,1749706232263,-541.65929644,0.00018219,2]
[365497657,1749706232311,-11679.13148569,0.00018219,2]
[365497665,1749706237974,-719.39,0.00018219,2]
[365497666,1749706237986,-469.71513444,0.00018219,2]
[365497667,1749706237998,-1000.0,0.00018219,2]
[365497668,1749706238010,-1159.61648382,0.00018219,2]
[365497669,1749706238055,-557.23,0.00018219,2]
[365497670,1749706238067,-28071.27992881,0.00018219,2]
[365497671,1749706238077,-1070.79,0.00018471,2]
[365497672,1749706238087,-1846.43,0.00018535,2]
[365497673,1749706238096,-550.0,0.00018633,2]
[365497674,1749706238107,-200.0,0.00018634,2]
[365497675,1749706238118,-3421.4,0.00018643,2]
[365497676,1749706238129,-201.0,0.00018699,3]
[365497677,1749706238139,-300.0,0.00018702,2]
[365497678,1749706238148,-2787.46,0.00018703,2]
[365497679,1749706238158,-504.68,0.000188,2]
[365497680,1749706238168,-499.19,0.000188,2]
[365497681,1749706238178,-494.12,0.000188,2]
[365497682,1749706238188,-507.1,0.000188,2]
[365497683,1749706238197,-9160.21140235,0.000188,2]
[365497685,1749706238208,-494.08,0.000188,2]
[365497687,1749706238218,-508.56,0.000188,2]
[365497689,1749706238228,-499.9,0.000188,2]
[365497691,1749706238237,-501.52,0.000188,2]
[365497693,1749706238247,-494.88,0.000188,2]
[365497695,1749706238258,-491.18,0.000188,2]
[365497697,1749706238267,-505.18,0.000188,2]
[365497699,1749706238282,-504.57,0.000188,2]
[365497700,1749706238292,-506.16,0.000188,2]
[365497701,1749706238301,-506.51,0.000188,2]
[365497702,1749706238311,-493.03,0.000188,2]
[365497703,1749706238321,-491.47,0.000188,2]
[365497704,1749706238331,-509.29,0.000188,2]
[365497705,1749706238341,-507.15,0.000188,2]
[365497706,1749706238350,-490.84,0.000188,2]
[365497707,1749706238360,-508.81,0.000188,2]
[365497708,1749706238370,-492.42,0.000188,2]
[365497709,1749706238382,-508.84,0.000188,2]
[365497710,1749706238392,-494.63,0.000188,2]
[365497711,1749706238401,-508.14,0.000188,2]
[365497712,1749706238411,-509.57,0.000188,2]
[365497713,1749706238421,-494.05,0.000188,2]
[365497714,1749706238431,-963.93704689,0.000188,2]
[365497715,1749706238442,-207.4,0.00018804,2]
[365497716,1749706238451,-16426.92126935,0.00018816,2]
[365497717,1749706238464,-7473.07873065,0.00018816,2]
[365497718,1749706238474,-250.0,0.00018833,2]
[365497719,1749706238484,-770.85,0.00018847,2]
[365497720,1749706238494,-301.63,0.0001885,2]
[365497721,1749706238504,-303.96,0.0001885,2]
[365497722,1749706238514,-301.13,0.0001885,2]
[365497723,1749706238524,-301.87,0.0001885,2]
[365497724,1749706238534,-1000.0,0.0001885,2]
[365497725,1749706238544,-3956.5751,0.000189,2]
[365497726,1749706238554,-1111.38482978,0.00018951,2]
[365497727,1749706238564,-151.0,0.00018989,2]
[365497728,1749706238574,-842.87,0.00019,20]
[365497729,1749706238584,-26460.81899737,0.00019,2]
[365497730,1749706240023,-29094.18100263,0.00019,2]
[365497731,1749706240033,-280.19036289,0.00019078,2]
[365497732,1749706240043,-610.0,0.000191,5]
[365497733,1749706240052,-280.19036279,0.00019121,2]
[365497734,1749706240062,-280.19036279,0.00019165,2]
[365497735,1749706240072,-2517.294342,0.00019178,2]
[365497736,1749706240082,-2517.294342,0.00019178,2]
[365497737,1749706240091,-2517.294342,0.00019178,2]
[365497738,1749706240101,-2517.294342,0.00019178,2]
[365497739,1749706240112,-2517.294342,0.00019178,2]
[365497740,1749706240121,-2517.294342,0.00019178,2]
[365497741,1749706240131,-151.0,0.00019178,2]
[365497742,1749706240141,-164.55,0.00019178,2]
[365497743,1749706240150,-150.0,0.00019178,2]
[365497744,1749706240160,-164.54,0.00019198,2]
[365497745,1749706240169,-280.19036279,0.00019208,2]
[365497746,1749706240178,-280.19036279,0.00019251,2]
[365497747,1749706240188,-269.88455268,0.00019294,2]
[365497748,1749706240200,-10.30581011,0.00019294,2]
[365497749,1749706240210,-165.83,0.00019332,2]
[365497750,1749706240219,-280.19036279,0.00019338,2]
[365497751,1749706240229,-2517.294342,0.00019342,2]
[365497752,1749706240238,-2517.294342,0.00019342,2]
[365497753,1749706240247,-2517.294342,0.00019342,2]
[365497754,1749706240257,-2517.294342,0.00019342,2]
[365497755,1749706240267,-2517.294342,0.00019342,2]
[365497756,1749706240276,-2517.294342,0.00019342,2]
[365497757,1749706240286,-2517.294342,0.00019342,2]
[365497758,1749706240296,-2517.294342,0.00019342,2]
[365497759,1749706240306,-280.19036279,0.00019381,2]
[365497760,1749706240316,-201.0,0.00019387,4]
[365497761,1749706240325,-280.19036279,0.00019424,2]
[365497762,1749706240334,-280.19036279,0.00019467,2]
[365497763,1749706240344,-1541.65996693,0.00019506,2]
[365497764,1749706240376,-975.63437507,0.00019506,2]
[365497765,1749706240387,-2517.294342,0.00019506,2]
[365497766,1749706240397,-2517.294342,0.00019506,2]
[365497767,1749706240407,-2517.294342,0.00019506,2]
[365497768,1749706240417,-2078.9857401,0.00019506,2]
[365497769,1749706240473,-438.3086019,0.00019506,2]
[365497770,1749706240483,-280.19036279,0.00019511,2]
[365497771,1749706240493,-335.5756558,0.00019515,2]
[365497772,1749706240502,-330.71445369,0.00019543,2]
[365497773,1749706240512,-104.08692604,0.00019549,2]
[365497774,1749706240558,-403.55287194,0.00019549,2]
[365497776,1749706240568,-170.74647616,0.00019549,2]
[365497777,1749706240578,-408.9140471,0.00019549,2]
[365497778,1749706240588,-590.0,0.0001955,2]
[365497779,1749706240598,-2001.0,0.0001955,2]
[365497780,1749706240608,-1276.0,0.0001955,2]
[365497781,1749706240618,-558.0,0.0001955,2]
[365497782,1749706240628,-927.0,0.0001955,2]
[365497783,1749706240639,-1673.0,0.0001955,2]
[365497784,1749706240649,-169.20852416,0.0001955,2]
[365497785,1749706240662,-989.79147584,0.0001955,2]
[365497786,1749706240672,-4087.0,0.0001955,2]
[365497787,1749706240682,-7066.0,0.0001955,2]
[365497788,1749706240692,-945.0,0.0001955,2]
[365497789,1749706240704,-3331.0,0.0001955,2]
[365497790,1749706240713,-280.19036279,0.00019554,2]
[365497791,1749706240723,-505.42058659,0.00019563,2]
[365497792,1749706240733,-179.14460519,0.00019571,2]
[365497793,1749706240742,-552.30980324,0.00019582,2]
[365497794,1749706240753,-280.19036279,0.00019597,2]
[365497795,1749706240763,-552.30980323,0.00019617,2]
[365497796,1749706240773,-280.19036279,0.0001964,2]
[365497797,1749706240782,-552.30980323,0.00019653,2]
[365497798,1749706240792,-2517.294342,0.00019671,2]
[365497799,1749706240801,-2517.294342,0.00019671,2]
[365497800,1749706240810,-2517.294342,0.00019671,2]
[365497801,1749706240820,-1685.3671,0.00019682,2]
[365497802,1749706240830,-280.19036279,0.00019684,2]
[365497803,1749706240840,-552.30980323,0.00019688,2]
[365497804,1749706240850,-552.30980323,0.00019723,2]
[365497805,1749706240860,-151.0,0.00019726,2]
[365497806,1749706240869,-280.19036279,0.00019727,2]
[365497807,1749706240879,-982.03,0.00019735,2]
[365497808,1749706240890,-179.14460517,0.00019736,2]
[365497809,1749706240900,-179.66809017,0.0001974,2]
[365497810,1749706240910,-179.66809011,0.00019758,2]
[365497811,1749706240920,-552.30980323,0.00019759,2]
[365497812,1749706240930,-280.19036279,0.0001977,2]
[365497813,1749706240940,-179.66809011,0.00019776,2]
[365497814,1749706240950,-2285.65645429,0.00019787,2]
[365497815,1749706240960,-179.66809011,0.00019793,2]
[365497816,1749706240970,-552.30980323,0.00019794,2]
[365497817,1749706240980,-179.66809011,0.00019811,2]
[365497818,1749706240989,-280.19036279,0.00019813,2]
[365497819,1749706240999,-179.66809011,0.00019829,2]
[365497820,1749706241009,-552.30980323,0.00019829,2]
[365497821,1749706241019,-2517.294342,0.00019835,2]
[365497822,1749706241029,-2517.294342,0.00019835,2]
[365497823,1749706241039,-2517.294342,0.00019835,2]
[365497824,1749706241048,-500.0,0.0001984,2]
[365497825,1749706241058,-200.0,0.0001984,2]
[365497826,1749706241068,-179.66809011,0.00019847,2]
[365497827,1749706241078,-280.19036279,0.00019857,2]
[365497828,1749706241089,-179.66809011,0.00019864,2]
[365497829,1749706241099,-552.30980323,0.00019865,2]
[365497830,1749706241109,-5757.05566892,0.00019866,2]
[365497831,1749706241119,-179.66809011,0.00019882,2]
[365497832,1749706241129,-192.65102864,0.00019892,2]
[365497833,1749706241141,-9408.8687,0.00019894,2]
[365497834,1749706241151,-162.85998887,0.00019899,2]
[365497835,1749706241161,-250000.0,0.000199,2]
[365497836,1749706241171,-1004.40031711,0.000199,2]
[365497837,1749706241180,-552.30980323,0.000199,2]
[365497838,1749706241191,-280.19036279,0.000199,2]
[365497839,1749706241200,-179.66809011,0.000199,2]
[365497840,1749706241210,-179.14460517,0.000199,2]
[365497841,1749706241220,-150.0,0.00019964,2]
[365497842,1749706241230,-1680.0,0.00019971,2]
[365497843,1749706241240,-500.0,0.00019973,2]
[365497844,1749706241251,-505.25259232,0.00019973,2]
[365497845,1749706241261,-500.0,0.00019973,2]
[365497846,1749706241272,-500.0,0.00019973,2]
[365497847,1749706241282,-500.0,0.00019973,2]
[365497848,1749706241292,-517.62605896,0.00019973,2]
[365497849,1749706241302,-500.0,0.00019973,2]
[365497850,1749706241313,-150.97,0.00019976,2]
[365497851,1749706241323,-6471.3864067,0.00019986,2]
[365497852,1749706241333,-5834.5961591,0.00019986,2]
[365497853,1749706241343,-5197.8059116,0.00019986,2]
[365497854,1749706241352,-4561.0156641,0.00019986,2]
[365497855,1749706241362,-3924.2254165,0.00019986,2]
[365497856,1749706241372,-18173.6090852,0.00019986,2]
[365497857,1749706241384,-16385.3095925,0.00019986,2]
[365497858,1749706241394,-14597.0100999,0.00019986,2]
[365497859,1749706241404,-12808.7106072,0.00019986,2]
[365497860,1749706241414,-11020.4111146,0.00019986,2]
[365497861,1749706241423,-128283.2000224,0.00019986,2]
[365497862,1749706241433,-115660.0176682,0.00019986,2]
[365497863,1749706241443,-103036.8353141,0.00019986,2]
[365497864,1749706241453,-90413.6529599,0.00019986,2]
[365497865,1749706241463,-77790.4706058,0.00019986,2]
[365497866,1749706241473,-505.4205866,0.00019986,2]
[365497867,1749706241484,-20014.57453798,0.0001999,2]
[365497868,1749706241494,-90384.90957441,0.0001999,2]
[365497869,1749706241504,-8000.0,0.0001999,2]
[365497870,1749706241513,-7108.1766542,0.00019994,2]
[365497871,1749706241523,-19961.9085778,0.00019994,2]
[365497872,1749706241533,-140906.3823765,0.00019994,2]
[365497873,1749706241542,-151.0,0.00019997,2]
[365497874,1749706241552,-151.0,0.00019997,2]
[365497875,1749706241563,-151.0,0.00019997,2]
[365497876,1749706241573,-151.0,0.00019997,2]
[365497877,1749706241583,-151.0,0.00019997,2]
[365497878,1749706241592,-151.0,0.00019997,2]
[365497879,1749706241602,-151.0,0.00019997,2]
[365497880,1749706241612,-256.13333265,0.00019997,2]
[365497881,1749706241621,-666.0,0.00019999,2]
[365497882,1749706241633,-300.0,0.00019999,2]
[365497883,1749706241643,-666.0,0.00019999,2]
[365497884,1749706241653,-666.0,0.00019999,2]
[365497885,1749706241663,-300.0,0.00019999,2]
[365497886,1749706241672,-300.0,0.00019999,2]
[365497887,1749706241682,-307.04182332,0.00019999,2]
[365497888,1749706241692,-1450.49060925,0.00019999,5]
[365497889,1749706241706,-1101.55414014,0.00019999,5]
[365497890,1749706241715,-26643.01561255,0.00019999,7]
[365497894,1749706243109,-853.0,0.0001955,2]
[365497895,1749706243119,-4090.72887948,0.00019999,7]
[365497896,1749706243223,-35197.30129297,0.00019999,7]
[365497897,1749706243233,-578.07560636,0.00019999,2]
[365497898,1749706243243,-150.0,0.00019999,2]
[365497899,1749706243253,-150.0,0.00019999,2]
[365497900,1749706243262,-150.0,0.00019999,2]
[365497901,1749706243273,-150.0,0.00019999,2]
[365497902,1749706243283,-500.0,0.00019999,2]
[365497903,1749706243293,-150.0,0.00019999,2]
[365497904,1749706243303,-500.0,0.00019999,2]
[365497905,1749706243312,-191.7,0.00019999,2]
[365497906,1749706243322,-500.0,0.00019999,2]
[365497907,1749706243332,-500.0,0.00019999,2]
[365497908,1749706243341,-150.0,0.00019999,2]
[365497909,1749706243351,-202.25101604,0.00019999,2]
[365497910,1749706243361,-500.0,0.00019999,2]
[365497911,1749706243371,-1192.0,0.00019999,2]
[365497912,1749706243380,-150.0,0.00019999,2]
[365497913,1749706243391,-150.0,0.00019999,2]
[365497914,1749706243400,-150.0,0.00019999,2]
[365497915,1749706243410,-500.0,0.00019999,2]
[365497916,1749706243420,-500.0,0.00019999,2]
[365497917,1749706243430,-150.0,0.00019999,2]
[365497918,1749706243439,-544.87,0.00019999,2]
[365497920,1749706243449,-544.87,0.00019999,2]
[365497922,1749706243460,-544.87,0.00019999,2]
[365497924,1749706243469,-544.87,0.00019999,2]
[365497926,1749706243479,-544.87,0.00019999,2]
[365497928,1749706243488,-544.87,0.00019999,2]
[365497930,1749706243497,-544.87,0.00019999,2]
[365497931,1749706243507,-544.87,0.00019999,2]
[365497933,1749706243516,-544.87,0.00019999,2]
[365497935,1749706243526,-544.87,0.00019999,2]
[365497937,1749706243535,-544.87,0.00019999,2]
[365497940,1749706243545,-544.87,0.00019999,2]
[365497941,1749706243555,-544.87,0.00019999,2]
[365497943,1749706243565,-544.87,0.00019999,2]
[365497946,1749706243575,-544.87,0.00019999,2]
[365497948,1749706243586,-544.87,0.00019999,2]
[365497950,1749706243595,-544.87,0.00019999,2]
[365497952,1749706243606,-544.87,0.00019999,2]
[365497954,1749706243616,-544.87,0.00019999,2]
[365497956,1749706243625,-544.87,0.00019999,2]
[365497958,1749706243635,-544.87,0.00019999,2]
[365497960,1749706243645,-544.87,0.00019999,2]
[365497962,1749706243655,-418.16025375,0.00019999,2]
[365497964,1749706243668,-126.70974625,0.00019999,2]
[365497966,1749706243677,-213.29025375,0.00019999,2]
[365498230,1749706246576,-778.76896791,0.000199,2]
[365498234,1749706246618,-429.05382433,0.000199,2]
[365498235,1749706246628,-331.63974625,0.00019999,2]
[365498236,1749706246638,-251.779506,0.00019999,2]
[365498237,1749706246647,-205.85954715,0.00019999,2]
[365498238,1749706246657,-652.0,0.00019999,2]
[365498239,1749706246666,-1163.7687554,0.00019999,3]
[365498240,1749706434318,160.66637379,0.0002,30]
[365498242,1749706482838,300.96,0.00013699,2]
[365498267,1749706778913,-231.85590464,0.00017063,2]
[365498269,1749706781647,-241.26061318,0.00017063,2]
[365498270,1749706784786,-265.95348218,0.00017063,2]
[365498298,1749707052164,201.0,0.00017076,2]
[365498299,1749707052345,201.0,0.00017816,3]
[365498310,1749707155238,1000.0,0.00024,120]
[365498311,1749707159399,1000.0,0.00024,120]
[365498325,1749707254141,-1114.734287,0.00018463,2]
[365498326,1749707254165,-201.0,0.00018556,4]
[365498327,1749707254188,-150.0,0.0001865,7]
[365498328,1749707254212,-25.81047728,0.00018743,2]
[365498339,1749707360471,750.0,0.00024655,120]
[365498341,1749707381132,1000.0,0.00024655,120]
[365498342,1749707400715,1000.0,0.00024655,120]
[365498343,1749707418867,680.72922579,0.00024655,120]
[365498348,1749707432260,-201.0,0.00018296,2]
[365498349,1749707432270,-111.33167225,0.00018622,2]
[365498350,1749707432333,-888.66832775,0.00018622,2]
[365498351,1749707432343,-156.13924493,0.00018743,2]
[365498352,1749707432354,-2.38027779,0.00018743,2]
[365498353,1749707432366,-150.0,0.00018875,2]
[365498354,1749707432375,-151.0,0.00018978,2]
[365498355,1749707432385,-207.4,0.00018978,2]
[365498356,1749707432395,-196.0,0.0001898,2]
[365498357,1749707432405,-43.06082745,0.00018987,2]
[365498371,1749707438204,-256.93917255,0.00018987,2]
[365498372,1749707438214,-141.35219584,0.00018987,2]
[365498373,1749707438301,-158.64780416,0.00018987,2]
[365498374,1749707438311,-507.59219584,0.00018987,2]
[365498375,1749707438324,-692.40780416,0.00018987,2]
[365498376,1749707438334,-129.32549659,0.00018988,2]
[365498377,1749707438345,-420.67450341,0.00018988,2]
[365498378,1749707438355,-500.0,0.00018988,2]
[365498379,1749707438365,-158.57445016,0.00018988,2]
[365498380,1749707438377,-341.42554984,0.00018988,2]
[365498381,1749707438387,-500.0,0.00018988,2]
[365498382,1749707438396,-244.78752724,0.00018988,2]
[365498383,1749707438406,-423.84902525,0.00018988,2]
[365498384,1749707438416,-505.02692557,0.00018989,2]
[365498385,1749707438427,-329.807,0.00018989,2]
[365498386,1749707438480,-6428.68937773,0.00018989,2]
[365498387,1749707438492,-280.407,0.00018989,2]
[365498396,1749707440316,-5541.0037653,0.00018989,2]
[365498397,1749707440460,-40750.06593141,0.00018989,2]
[365498398,1749707440472,-23900.0,0.00018989,2]
[365498399,1749707440484,-1000.0,0.00019,19]
[365498400,1749707440496,-45728.50977866,0.00019,2]
[365498401,1749707440509,-196.0,0.00019006,2]
[365498402,1749707440520,-250.0,0.00019011,2]
[365498403,1749707440533,-196.0,0.00019024,2]
[365498404,1749707440545,-201.0,0.00019054,3]
[365498405,1749707440557,-796.98,0.000191,2]
[365498406,1749707440570,-807.22,0.000191,2]
[365498407,1749707440583,-150.0,0.00019178,2]
[365498408,1749707440595,-335.89,0.00019178,2]
[365498409,1749707440609,-165.69294105,0.00019225,2]
[365498410,1749707440620,-165.69294096,0.000193,2]
[365498411,1749707440633,-161.73,0.00019311,2]
[365498412,1749707440645,-196.0,0.00019325,2]
[365498413,1749707440657,-739.07,0.00019327,2]
[365498414,1749707440670,-165.69294096,0.00019375,2]
[365498416,1749707440683,-196.0,0.000194,2]
[365498419,1749707440695,-880.0,0.00019448,2]
[365498421,1749707440708,-165.69294096,0.0001945,2]
[365498423,1749707440720,-168.11421769,0.00019516,2]
[365498424,1749707440732,-165.69294096,0.00019525,2]
[365498425,1749707440744,-880.0,0.0001954,2]
[365498426,1749707440757,-880.0,0.00019579,2]
[365498427,1749707440769,-165.69294096,0.000196,2]
[365498428,1749707440781,-168.11421767,0.00019612,2]
[365498429,1749707440795,-1498.816,0.00019616,2]
[365498430,1749707440808,-802.0,0.00019616,2]
[365498431,1749707440822,-558.0,0.00019616,2]
[365498432,1749707440835,-927.0,0.00019616,2]
[365498433,1749707440850,-4087.0,0.00019616,2]
[365498434,1749707440863,-199.0,0.00019616,2]
[365498435,1749707440876,-7066.0,0.00019616,2]
[365498436,1749707440889,-191.622,0.00019616,2]
[365498437,1749707440902,-884.0,0.00019616,2]
[365498438,1749707440914,-163.52,0.00019616,2]
[365498439,1749707440927,-155.0,0.00019616,2]
[365498440,1749707440940,-880.0,0.00019642,2]
[365498441,1749707440954,-880.0,0.00019647,2]
[365498442,1749707440968,-880.0,0.00019657,2]
[365498443,1749707440981,-880.0,0.00019663,2]
[365498444,1749707440995,-165.69294096,0.00019675,2]
[365498445,1749707441008,-880.0,0.00019699,2]
[365498446,1749707441021,-168.11421767,0.00019708,2]
[365498447,1749707441034,-151.0,0.00019726,2]
[365498448,1749707441049,-880.0,0.00019739,2]
[365498449,1749707441061,-165.69294096,0.0001975,2]
[365498450,1749707441073,-168.11421767,0.00019804,2]
[365498451,1749707441085,-201.0,0.00019812,4]
[365498452,1749707441098,-982.03,0.0001982,2]
[365498453,1749707441110,-165.69294096,0.00019825,2]
[365498454,1749707441124,-500.0,0.0001984,2]
[365498455,1749707441137,-200.0,0.0001984,2]
[365498456,1749707441149,-505.42058659,0.00019854,2]
[365498457,1749707441163,-179.14460519,0.00019886,2]
[365498458,1749707441176,-1685.3671,0.0001989,2]
[365498459,1749707441188,-179.14460517,0.00019893,2]
[365498460,1749707441201,-150.0,0.00019896,2]
[365498461,1749707441213,-355.34785858,0.00019899,2]
[365498462,1749707441225,-286.23983297,0.00019899,2]
[365498463,1749707441237,-9408.8687,0.000199,2]